bitfinex/quotes_BTCUSD_20241222
["timestamp","ask_amount","ask_price","bid_price","bid_amount"]
[1734832015641,0.0704863,96891.0,96885.0,0.206428]
[1734832015854,0.00077391,96899.0,96885.0,0.412857]
[1734832015855,0.0704863,96893.0,96885.0,0.412857]
[1734832016034,0.0704863,96893.0,96853.0,0.23080027]
[1734832016035,0.0704863,96899.0,96887.0,0.001]
[1734832016246,0.0704463,96899.0,96888.0,0.207455]
[1734832016633,0.0704463,96899.0,96893.0,0.206412]
[1734832017066,0.0001716,96904.0,96899.0,0.2064]
[1734832017530,0.0706179,96904.0,96899.0,0.2064]
[1734832017740,0.0706179,96904.0,96893.0,0.206412]
[1734832017938,0.0706179,96904.0,96895.0,0.206408]
[1734832018354,0.001,96899.0,96895.0,0.206408]
[1734832018795,0.00016378,96902.0,96895.0,0.206408]
[1734832019009,0.00016378,96902.0,96893.0,0.206412]
[1734832019010,0.10524609,96902.0,96893.0,0.206411]
[1734832019221,0.10464358,96902.0,96879.0,0.023]
[1734832019428,0.30847831,96901.0,96885.0,0.206428]
[1734832020266,0.00077391,96901.0,96881.0,0.09215348]
[1734832020465,0.00033518,96902.0,96895.0,0.001]
[1734832020708,0.10208231,96901.0,96895.0,0.001]
[1734832021485,0.10208231,96901.0,96895.0,0.003]
[1734832021645,0.0704463,96891.0,96876.0,0.09215348]
[1734832021841,0.0704463,96891.0,96885.0,0.001]
[1734832022468,0.0704463,96891.0,96882.0,0.206435]
[1734832022867,0.0704463,96891.0,96876.0,0.001]
[1734832023048,0.0704463,96895.0,96886.0,0.412853]
[1734832023247,0.0704463,96893.0,96885.0,0.001]
[1734832023568,0.0704463,96893.0,96886.0,0.206428]
[1734832023796,0.0704463,96891.0,96885.0,0.001]
[1734832024028,0.07877391,96890.0,96885.0,0.001]
[1734832024171,0.206421,96889.0,96885.0,0.001]
[1734832024373,0.206421,96889.0,96878.0,0.09215348]
[1734832024608,0.206426,96887.0,96882.0,0.001]
[1734832024815,0.206426,96887.0,96885.0,0.001]
[1734832025013,0.078,96890.0,96885.0,0.001]
[1734832025213,0.206423,96888.0,96885.0,0.002]
[1734832025414,0.10208231,96887.0,96885.0,0.001]
[1734832025623,0.10208231,96887.0,96878.0,0.09215348]
[1734832025827,0.206428,96886.0,96882.0,0.003]
[1734832026049,0.00077391,96885.0,96882.0,0.003]
[1734832026275,0.00077391,96885.0,96871.0,0.09215348]
[1734832026448,0.0802716,96904.0,96898.0,0.2064]
[1734832026650,0.0001716,96904.0,96898.0,0.2064]
[1734832027379,0.0001716,96904.0,96898.0,0.412802]
[1734832027583,0.0001716,96904.0,96900.0,0.206398]
[1734832027737,0.0001716,96904.0,96901.0,0.00103183]
[1734832028977,0.0001716,96904.0,96901.0,0.02403183]
[1734832029124,0.0001716,96904.0,96901.0,0.07323183]
[1734832029337,0.0001716,96904.0,96902.0,0.23042576]
[1734832030169,0.0001716,96904.0,96903.0,0.2743084]
[1734832030341,0.0001716,96904.0,96903.0,0.3038621]
[1734832031223,0.0001716,96904.0,96903.0,0.4038621]
[1734832031443,0.0001716,96904.0,96903.0,0.97600403]
[1734832032227,0.0001716,96904.0,96903.0,0.97800403]
[1734832032975,0.0001714,96908.0,96907.0,0.0295537]
[1734832033179,0.0001714,96908.0,96907.0,0.13189373]
[1734832033389,0.0001714,96908.0,96907.0,0.28189373]
[1734832033558,0.0001714,96908.0,96907.0,0.2808621]
[1734832035070,0.0011714,96908.0,96907.0,0.2898621]
[1734832035520,0.0011714,96908.0,96907.0,0.4951621]
[1734832036361,0.0011714,96908.0,96907.0,0.83539919]
[1734832036486,0.0011714,96908.0,96907.0,0.84052524]
[1734832037138,0.0011714,96908.0,96907.0,1.38672524]
[1734832037434,0.0001714,96922.0,96920.0,0.3859087]
[1734832037670,0.0001714,96922.0,96920.0,0.6102171]
[1734832037902,0.0001714,96922.0,96920.0,0.7355171]
[1734832038585,0.0001714,96922.0,96920.0,1.21688758]
[1734832038821,0.0001714,96947.0,96935.0,0.0295537]
[1734832039041,0.0001714,96947.0,96937.0,0.15]
[1734832039042,0.00030092,96947.0,96937.0,0.15]
[1734832039244,0.00030092,96947.0,96946.0,0.2063]
[1734832041992,0.00030092,96947.0,96946.0,0.2113]
[1734832042434,0.00030092,96947.0,96946.0,0.2133]
[1734832043410,0.00030092,96947.0,96946.0,0.007]
[1734832044146,0.00030092,96947.0,96946.0,0.002]
[1734832044346,0.00030092,96947.0,96944.0,0.412608]
[1734832044606,0.00030092,96947.0,96946.0,0.003]
[1734832045205,0.00030092,96947.0,96946.0,0.002]
[1734832045437,0.00030092,96947.0,96944.0,0.414608]
[1734832045608,0.00030092,96947.0,96944.0,0.417608]
[1734832045817,0.00030092,96947.0,96944.0,0.415608]
[1734832046034,0.00030092,96947.0,96944.0,0.412608]
[1734832046239,0.00030092,96947.0,96946.0,0.003]
[1734832047925,0.00030092,96947.0,96944.0,0.412608]
[1734832048133,0.00030092,96947.0,96944.0,0.209304]
[1734832048335,0.00030092,96947.0,96944.0,0.206304]
[1734832048494,0.00030092,96947.0,96944.0,0.208304]
[1734832048691,0.00030092,96947.0,96946.0,0.003]
[1734832049101,0.00030092,96947.0,96944.0,0.414608]
[1734832049304,0.00030092,96947.0,96944.0,0.002]
[1734832049509,0.00030092,96947.0,96944.0,0.003]
[1734832049705,0.00030092,96947.0,96937.0,0.206318]
[1734832049906,0.00030092,96947.0,96927.0,0.35634]
[1734832049907,0.206302,96945.0,96927.0,0.20634]
[1734832050093,0.0786,96939.0,96932.0,0.20633]
[1734832050288,0.07390092,96948.0,96934.0,0.206325]
[1734832050487,0.07390092,96948.0,96945.0,0.206302]
[1734832050959,0.07390092,96948.0,96945.0,0.412604]
[1734832051161,0.07390092,96948.0,96947.0,0.206298]
[1734832051362,0.0001,96949.0,96947.0,0.206298]
[1734832051566,0.0001,96949.0,96948.0,0.00103132]
[1734832052726,0.0001,96949.0,96948.0,0.00403132]
[1734832052933,0.0001714,96957.0,96948.0,0.00603132]
[1734832053134,0.0001714,96957.0,96956.0,0.206279]
[1734832055231,0.0001714,96957.0,96945.0,0.0103691]
[1734832055352,0.0001714,96957.0,96944.0,0.206303]
[1734832055548,0.0001714,96957.0,96941.0,0.20631]
[1734832055857,0.07714531,96957.0,96956.0,0.003]
[1734832056079,0.19749161,96957.0,96956.0,0.00212952]
[1734832057290,0.20764743,96957.0,96956.0,0.00212952]
[1734832057497,0.20687352,96957.0,96956.0,0.00212952]
[1734832058129,0.20687352,96957.0,96956.0,0.00012952]
[1734832058332,0.31018192,96957.0,96956.0,0.00012952]
[1734832058917,0.30818192,96957.0,96956.0,0.00012952]
[1734832059250,0.31018192,96957.0,96956.0,0.00012952]
[1734832059912,0.31018192,96957.0,96956.0,0.00112952]
[1734832060657,0.30818192,96957.0,96956.0,0.00112952]
[1734832060834,0.31218192,96957.0,96956.0,0.00112952]
[1734832061437,0.30818192,96957.0,96956.0,0.00112952]
[1734832061634,0.30818192,96957.0,96956.0,0.00012952]
[1734832062079,0.30818192,96957.0,96956.0,0.00112952]
[1734832062396,0.31118192,96957.0,96956.0,0.00112952]
[1734832062826,0.31118192,96957.0,96956.0,0.00012952]
[1734832063029,0.31118192,96957.0,96956.0,0.00112952]
[1734832063613,0.30818192,96957.0,96956.0,0.00112952]
[1734832064258,0.31118192,96957.0,96956.0,0.00112952]
[1734832064679,0.30818192,96957.0,96956.0,0.00112952]
[1734832064894,0.30818192,96957.0,96956.0,0.00012952]
[1734832065103,0.31118192,96957.0,96956.0,0.00012952]
[1734832065309,0.31118192,96957.0,96956.0,0.00112952]
[1734832066549,0.46118192,96957.0,96956.0,0.00112952]
[1734832066959,0.58418192,96957.0,96956.0,0.00112952]
[1734832067720,0.58118192,96957.0,96956.0,0.00112952]
[1734832067926,0.58118192,96957.0,96956.0,0.00012952]
[1734832068133,0.58418192,96957.0,96956.0,0.00012952]
[1734832068346,0.58418192,96957.0,96956.0,0.00112952]
[1734832071465,0.58118192,96957.0,96956.0,0.00112952]
[1734832071628,0.58118192,96957.0,96956.0,0.00012952]
[1734832071833,0.58418192,96957.0,96956.0,0.00112952]
[1734832085318,0.46118192,96957.0,96956.0,0.00112952]
[1734832085522,0.41128192,96957.0,96956.0,0.00112952]
[1734832085641,0.33508192,96957.0,96956.0,0.00012952]
[1734832086027,0.33208192,96957.0,96956.0,0.00112952]
[1734832086181,0.33508192,96957.0,96956.0,0.00112952]
[1734832086563,0.33208192,96957.0,96956.0,0.00112952]
[1734832087457,0.33508192,96957.0,96956.0,0.00112952]
[1734832088144,0.1749261,96957.0,96956.0,0.00012952]
[1734832088356,0.17570001,96957.0,96956.0,0.00112952]
[1734832088790,0.17570001,96957.0,96956.0,0.00012952]
[1734832089028,0.17570001,96957.0,96956.0,0.00112952]
[1734832089227,0.17270001,96957.0,96956.0,0.00012952]
[1734832089362,0.17570001,96957.0,96956.0,0.00012952]
[1734832089574,0.17570001,96957.0,96956.0,0.00112952]
[1734832089912,0.17270001,96957.0,96956.0,0.00112952]
[1734832090117,0.17570001,96957.0,96956.0,0.00112952]
[1734832090348,0.17570001,96957.0,96956.0,0.00012952]
[1734832090764,0.17270001,96957.0,96956.0,0.00012952]
[1734832091198,0.17570001,96957.0,96956.0,0.00012952]
[1734832091823,0.25590001,96957.0,96956.0,0.00112952]
[1734832092061,0.25590001,96957.0,96956.0,0.00012952]
[1734832092062,0.3551261,96957.0,96956.0,0.00012952]
[1734832092274,0.4267373,96950.0,96949.0,0.0001714]
[1734832092481,0.7082457,96950.0,96949.0,0.0001714]
[1734832092690,0.7312457,96950.0,96949.0,0.0001714]
[1734832093309,0.6312457,96950.0,96949.0,0.0001714]
[1734832093520,0.6102457,96950.0,96949.0,0.0001714]
[1734832094142,0.6082457,96950.0,96949.0,0.0001714]
[1734832094365,0.62937253,96950.0,96949.0,0.0001714]
[1734832095314,0.63975161,96950.0,96949.0,0.0001714]
[1734832095552,0.64475161,96950.0,96949.0,0.0001714]
[1734832095782,0.74475161,96950.0,96949.0,0.0001714]
[1734832096021,0.73975161,96950.0,96949.0,0.0001714]
[1734832096241,0.75275161,96950.0,96949.0,0.0011714]
[1734832099864,0.65275161,96950.0,96949.0,0.0011714]
[1734832100070,0.3910457,96950.0,96949.0,0.0011714]
[1734832100897,0.1807547,96950.0,96949.0,0.0011714]
[1734832101311,0.0704463,96953.0,96949.0,0.0756714]
[1734832101525,0.00077391,96952.0,96949.0,0.0756714]
[1734832101731,0.006,96950.0,96949.0,0.0766714]
[1734832101941,0.0704463,96953.0,96949.0,0.0766714]
[1734832101942,0.0704463,96953.0,96949.0,0.0756714]
[1734832102321,0.006,96950.0,96949.0,0.0766714]
[1734832102520,0.0704463,96953.0,96949.0,0.0756714]
[1734832102721,0.004,96950.0,96949.0,0.0756714]
[1734832102884,0.009,96950.0,96949.0,0.0756714]
[1734832103097,0.004,96950.0,96949.0,0.1206714]
[1734832103305,0.0704463,96954.0,96949.0,0.1206714]
[1734832103531,8.57e-05,96956.0,96950.0,0.206291]
[1734832103730,0.1013084,96955.0,96950.0,0.206291]
[1734832104286,0.001,96954.0,96950.0,0.206291]
[1734832105758,0.002,96954.0,96950.0,0.206291]
[1734832106311,0.1013084,96955.0,96950.0,0.206291]
[1734832106514,0.001,96955.0,96951.0,0.206287]
[1734832106941,0.001,96955.0,96951.0,0.412574]
[1734832107145,8.57e-05,96956.0,96951.0,0.206287]
[1734832107365,0.001,96955.0,96952.0,0.206285]
[1734832107553,0.001,96955.0,96953.0,0.00103137]
[1734832107762,8.57e-05,96956.0,96954.0,0.206283]
[1734832107982,8.57e-05,96956.0,96955.0,0.00103129]
[1734832109718,8.57e-05,96956.0,96955.0,0.00603129]
[1734832109923,8.57e-05,96956.0,96955.0,0.005]
[1734832110532,8.57e-05,96956.0,96955.0,0.00803128]
[1734832110931,8.57e-05,96956.0,96952.0,0.09199616]
[1734832111360,8.57e-05,96956.0,96955.0,0.005]
[1734832111691,8.57e-05,96956.0,96955.0,0.001]
[1734832111920,8.57e-05,96956.0,96955.0,0.005]
[1734832112327,8.57e-05,96956.0,96955.0,0.001]
[1734832112535,8.57e-05,96956.0,96955.0,0.002]
[1734832113040,8.57e-05,96956.0,96955.0,0.001]
[1734832113415,0.00085961,96956.0,96955.0,0.001]
[1734832113845,8.57e-05,96956.0,96955.0,0.001]
[1734832114320,8.57e-05,96956.0,96953.0,0.206283]
[1734832114462,8.57e-05,96956.0,96950.0,0.206291]
[1734832114869,0.0010857,96956.0,96949.0,0.0001714]
[1734832115066,0.0040857,96956.0,96949.0,0.0001714]
[1734832115480,0.206289,96951.0,96949.0,0.0001714]
[1734832116075,0.0704463,96953.0,96949.0,0.0001714]
[1734832118003,0.0734463,96953.0,96949.0,0.0001714]
[1734832119166,0.0714463,96953.0,96949.0,0.0001714]
[1734832119393,0.58510261,96952.0,96949.0,0.0001714]
[1734832119596,0.0704463,96950.0,96949.0,0.0001714]
[1734832119799,0.37881961,96950.0,96949.0,0.0001714]
[1734832120021,0.3780457,96950.0,96949.0,0.0001714]
[1734832121419,0.3790457,96950.0,96949.0,0.0001714]
[1734832121586,0.3780457,96950.0,96949.0,0.0001714]
[1734832122665,0.3840457,96950.0,96949.0,0.0011714]
[1734832123483,0.3870457,96950.0,96949.0,0.0011714]
[1734832123885,0.3810457,96950.0,96949.0,0.0001714]
[1734832124284,0.3870457,96950.0,96949.0,0.0011714]
[1734832127471,0.5370457,96950.0,96949.0,0.0011714]
[1734832127885,0.6150457,96950.0,96949.0,0.0011714]
[1734832128091,0.7150457,96950.0,96949.0,0.0011714]
[1734832128319,0.7380457,96950.0,96949.0,0.0011714]
[1734832128870,0.7350457,96950.0,96949.0,0.0011714]
[1734832129281,0.7290457,96950.0,96949.0,0.0001714]
[1734832129663,0.7330457,96950.0,96949.0,0.0001714]
[1734832130034,0.6290457,96950.0,96949.0,0.0001714]
[1734832130231,0.6340457,96950.0,96949.0,0.0001714]
[1734832130439,0.6420457,96950.0,96949.0,0.0011714]
[1734832130645,0.6110457,96950.0,96949.0,0.0001714]
[1734832130833,0.6200457,96950.0,96949.0,0.0011714]
[1734832131238,0.7430457,96950.0,96949.0,0.0011714]
[1734832139748,0.6430457,96950.0,96949.0,0.0011714]
[1734832139949,0.6200457,96950.0,96949.0,0.0011714]
[1734832140173,0.7430457,96950.0,96949.0,0.0011714]
[1734832140788,0.6430457,96950.0,96949.0,0.0011714]
[1734832141376,0.6200457,96950.0,96949.0,0.0011714]
[1734832143700,0.7430457,96950.0,96949.0,0.0011714]
[1734832145008,0.6200457,96950.0,96949.0,0.0011714]
[1734832145323,0.6430457,96950.0,96949.0,0.0011714]
[1734832152888,0.7430457,96950.0,96949.0,0.0011714]
[1734832153306,0.77495821,96950.0,96949.0,0.0011714]
[1734832154961,0.7430457,96950.0,96949.0,0.0011714]
[1734832155289,0.6430457,96950.0,96949.0,0.0011714]
[1734832155501,0.7430457,96950.0,96949.0,0.0011714]
[1734832155681,0.77498533,96950.0,96949.0,0.0011714]
[1734832158360,0.77498533,96950.0,96909.0,0.01028784]
[1734832158361,0.206381,96908.0,96905.0,0.0768]
[1734832159617,0.206381,96908.0,96907.0,0.0491714]
[1734832159790,0.206377,96910.0,96907.0,0.0491714]
[1734832159994,0.206381,96908.0,96907.0,0.0491714]
[1734832160429,0.206381,96908.0,96907.0,0.0541714]
[1734832160785,0.206381,96908.0,96907.0,0.0471714]
[1734832161012,0.206381,96908.0,96907.0,0.0511714]
[1734832161358,0.206381,96908.0,96907.0,0.0541714]
[1734832161587,0.3076894,96908.0,96907.0,0.0071714]
[1734832161795,0.3076894,96908.0,96907.0,0.0091714]
[1734832161996,0.3076894,96908.0,96907.0,0.0001714]
[1734832162176,0.3076894,96908.0,96907.0,0.0021714]
[1734832162177,0.1013084,96908.0,96907.0,0.0021714]
[1734832162756,0.1013084,96908.0,96907.0,0.0001714]
[1734832163420,0.1013084,96908.0,96907.0,0.0031714]
[1734832163831,0.1013084,96908.0,96907.0,0.0001714]
[1734832164595,0.1013084,96908.0,96907.0,0.0021714]
[1734832165231,0.1013084,96908.0,96907.0,0.0011714]
[1734832165609,0.1013084,96908.0,96907.0,0.0021714]
[1734832168708,0.1013084,96908.0,96907.0,0.0011714]
[1734832170362,0.1013084,96908.0,96907.0,0.0001714]
[1734832171193,0.1043084,96908.0,96907.0,0.0001714]
[1734832171578,0.1023084,96908.0,96907.0,0.0001714]
[1734832171796,0.1033084,96908.0,96907.0,0.0001714]
[1734832171997,0.1043084,96908.0,96907.0,0.0001714]
[1734832172748,0.1033084,96908.0,96907.0,0.0001714]
[1734832173287,0.1013084,96908.0,96907.0,0.0001714]
[1734832173656,0.1023084,96908.0,96907.0,0.0001714]
[1734832174912,0.1013084,96908.0,96907.0,0.0001714]
[1734832175337,0.1023084,96908.0,96907.0,0.0001714]
[1734832175743,0.10308231,96908.0,96907.0,0.0001714]
[1734832175976,0.17352861,96908.0,96907.0,0.0001714]
[1734832191369,0.17252861,96908.0,96907.0,0.0001714]
[1734832193804,0.17352861,96908.0,96907.0,0.0001714]
[1734832194004,0.17252861,96908.0,96907.0,0.0001714]
[1734832197194,0.17352861,96908.0,96907.0,0.0001714]
[1734832197410,0.17252861,96908.0,96907.0,0.0001714]
[1734832201382,0.17452861,96908.0,96907.0,0.0001714]
[1734832201766,0.17252861,96908.0,96907.0,0.0001714]
[1734832202212,0.17452861,96908.0,96907.0,0.0001714]
[1734832202390,0.17852861,96908.0,96907.0,0.0001714]
[1734832203229,0.22362861,96908.0,96907.0,0.0001714]
[1734832203429,0.2228547,96908.0,96907.0,0.0001714]
[1734832204029,0.2188547,96908.0,96907.0,0.0001714]
[1734832204455,0.1777547,96908.0,96907.0,0.0001714]
[1734832204657,0.17652861,96908.0,96907.0,0.0001714]
[1734832204905,0.1777547,96908.0,96907.0,0.0001714]
[1734832205447,0.1757547,96908.0,96907.0,0.0001714]
[1734832205661,0.1777547,96908.0,96907.0,0.0001714]
[1734832206453,0.1073084,96908.0,96907.0,0.0001714]
[1734832206676,0.1073084,96908.0,96907.0,0.2065544]
[1734832206677,0.006,96908.0,96907.0,0.2065544]
[1734832206879,0.006,96908.0,96907.0,0.2844544]
[1734832207052,0.09112031,96928.0,96907.0,0.2844544]
[1734832207252,0.1013084,96927.0,96915.0,0.206365]
[1734832207666,0.0704463,96924.0,96916.0,0.206364]
[1734832207923,0.0704463,96922.0,96917.0,0.0451]
[1734832208091,0.0704463,96922.0,96918.0,0.20636]
[1734832208531,0.206324,96935.0,96919.0,0.206356]
[1734832208758,0.003,96924.0,96919.0,0.206356]
[1734832209301,0.003,96924.0,96919.0,0.412713]
[1734832209550,0.003,96924.0,96919.0,0.206356]
[1734832210142,0.0704463,96928.0,96919.0,0.206356]
[1734832210306,0.1717547,96928.0,96919.0,0.206356]
[1734832210515,0.007,96922.0,96919.0,0.206356]
[1734832210712,0.002,96922.0,96919.0,0.206356]
[1734832210953,0.1717547,96928.0,96919.0,0.206356]
[1734832211165,0.1013084,96928.0,96919.0,0.208356]
[1734832211364,0.1717547,96928.0,96919.0,0.208356]
[1734832211573,0.1717547,96928.0,96919.0,0.206356]
[1734832212028,0.1717547,96928.0,96919.0,0.212356]
[1734832212230,0.0704463,96926.0,96919.0,0.002]
[1734832212632,0.206345,96925.0,96919.0,0.002]
[1734832213172,0.206345,96925.0,96917.0,0.0451]
[1734832213716,0.0704463,96925.0,96919.0,0.002]
[1734832214014,0.2767923,96925.0,96917.0,0.0451]
[1734832214248,0.00077391,96924.0,96917.0,0.001]
[1734832214423,0.206349,96923.0,96917.0,0.002]
[1734832214626,0.206349,96923.0,96917.0,0.001]
[1734832214977,0.206349,96923.0,96919.0,0.001]
[1734832214978,0.30843331,96922.0,96919.0,0.001]
[1734832215164,0.20637,96914.0,96910.0,0.09199616]
[1734832215365,0.0704463,96912.0,96909.0,0.09199616]
[1734832215621,0.0704463,96910.0,96909.0,0.09199616]
[1734832215850,0.37890561,96910.0,96909.0,0.09199616]
[1734832216049,0.3781317,96910.0,96909.0,0.09199616]
[1734832216433,0.0704463,96908.0,96907.0,0.0001714]
[1734832216662,0.17252861,96908.0,96907.0,0.0001714]
[1734832222243,0.19552861,96908.0,96907.0,0.0001714]
[1734832222572,0.27192861,96908.0,96907.0,0.0001714]
[1734832222720,0.2711547,96908.0,96907.0,0.0001714]
[1734832223945,0.2711547,96908.0,96907.0,0.0011714]
[1734832223946,0.2781547,96908.0,96907.0,0.0011714]
[1734832224527,0.2581547,96908.0,96907.0,0.0011714]
[1734832224864,0.3064547,96908.0,96907.0,0.0011714]
[1734832225057,0.4294547,96908.0,96907.0,0.0011714]
[1734832227087,0.3294547,96908.0,96907.0,0.0011714]
[1734832228226,0.2811547,96908.0,96907.0,0.0011714]
[1734832229235,0.1817547,96908.0,96907.0,0.0011714]
[1734832229347,0.18252861,96908.0,96907.0,0.0011714]
[1734832229752,0.01,96908.0,96907.0,0.0011714]
[1734832230640,0.007,96908.0,96907.0,0.0011714]
[1734832230869,0.0704463,96916.0,96907.0,0.0001714]
[1734832231101,0.1013084,96915.0,96907.0,0.0011714]
[1734832231261,0.1013084,96915.0,96907.0,0.0021714]
[1734832231619,0.1013084,96915.0,96907.0,0.0011714]
[1734832231818,0.00077391,96914.0,96907.0,0.0011714]
[1734832232069,0.1013084,96914.0,96907.0,0.0001714]
[1734832233041,0.0704463,96912.0,96907.0,0.0001714]
[1734832233897,0.10208231,96914.0,96907.0,0.0001714]
[1734832234046,0.0704463,96912.0,96907.0,0.0001714]
[1734832234995,0.0714463,96912.0,96907.0,0.0001714]
[1734832235151,0.206374,96911.0,96907.0,0.0001714]
[1734832235876,0.0704463,96912.0,96907.0,0.0001714]
[1734832237131,0.0714463,96912.0,96907.0,0.0001714]
[1734832237286,0.0704463,96912.0,96901.0,0.40841087]
[1734832237735,0.0714463,96912.0,96901.0,0.40841087]
[1734832238023,0.0704463,96912.0,96901.0,0.40841087]
[1734832238233,0.0704463,96912.0,96907.0,0.003]
[1734832238430,0.0704463,96917.0,96911.0,0.206374]
[1734832238635,0.0704463,96920.0,96911.0,0.206374]
[1734832238866,0.001,96912.0,96911.0,0.206374]
[1734832239065,0.001,96912.0,96911.0,0.256274]
[1734832240230,0.00016357,96935.0,96928.0,0.0784]
[1734832240360,0.00016357,96935.0,96929.0,0.00103159]
[1734832240568,0.00016357,96935.0,96933.0,0.206326]
[1734832240988,0.00016357,96935.0,96930.0,0.206334]
[1734832241766,0.00016357,96935.0,96928.0,0.0794]
[1734832242095,0.00016357,96935.0,96928.0,0.285738]
[1734832242294,0.00016357,96935.0,96928.0,0.001]
[1734832242500,0.10147197,96935.0,96928.0,0.001]
[1734832242656,0.10147197,96935.0,96923.0,0.09199616]
[1734832242657,0.206328,96933.0,96923.0,0.09199616]
[1734832242864,0.10208231,96932.0,96930.0,0.001]
[1734832243043,0.30841231,96932.0,96930.0,0.001]
[1734832244058,0.30841231,96932.0,96918.0,0.20739169]
[1734832244664,0.30841231,96932.0,96918.0,0.19932846]
[1734832244814,0.30941231,96932.0,96918.0,0.19932846]
[1734832245038,0.10208231,96932.0,96918.0,0.19932846]
[1734832245222,0.1013084,96932.0,96918.0,0.19932846]
[1734832246077,0.20710591,96931.0,96918.0,0.19932846]
[1734832246204,0.30841431,96931.0,96918.0,0.19932846]
[1734832247348,0.51474831,96931.0,96918.0,0.00103169]
[1734832247548,0.30841431,96931.0,96917.0,0.206362]
[1734832248310,0.31041431,96931.0,96917.0,0.206362]
[1734832248601,0.31041431,96931.0,96918.0,0.00103169]
[1734832248744,0.3096404,96931.0,96918.0,0.00103169]
[1734832248949,0.1033084,96931.0,96919.0,0.206357]
[1734832249555,0.1013084,96931.0,96919.0,0.206357]
[1734832249795,0.1043084,96931.0,96919.0,0.206357]
[1734832250241,0.00016357,96935.0,96913.0,0.0789]
[1734832250366,0.00016357,96935.0,96920.0,0.00103169]
[1734832250367,0.001,96931.0,96920.0,0.00103169]
[1734832250550,0.001,96931.0,96930.0,0.206334]
[1734832250753,0.001,96931.0,96930.0,0.27970031]
[1734832251181,0.00016357,96935.0,96932.0,0.20633]
[1734832251383,0.00016357,96935.0,96934.0,0.206325]
[1734832251791,0.00016357,96935.0,96934.0,0.20151545]
[1734832251991,0.00016357,96935.0,96934.0,0.20254691]
[1734832253284,0.00016357,96935.0,96934.0,0.20454691]
[1734832253658,0.00016357,96935.0,96934.0,0.20854691]
[1734832253860,0.00016357,96935.0,96934.0,0.20151545]
[1734832254062,0.00016357,96935.0,96934.0,0.20254692]
[1734832254268,0.00116357,96935.0,96934.0,0.20954692]
[1734832254468,0.00016357,96935.0,96934.0,0.20451545]
[1734832254769,0.00016357,96935.0,96934.0,0.20554693]
[1734832254999,0.00016357,96935.0,96934.0,0.20954693]
[1734832255281,0.00016357,96935.0,96934.0,0.20851545]
[1734832255894,0.00016357,96935.0,96934.0,0.20151545]
[1734832256236,0.00116357,96935.0,96934.0,0.20854693]
[1734832256463,0.00116357,96935.0,96934.0,0.20751545]
[1734832256736,0.00116357,96935.0,96934.0,0.19745254]
[1734832256921,0.00116357,96935.0,96934.0,0.201484]
[1734832257144,0.00016357,96935.0,96934.0,0.197484]
[1734832257493,0.00016357,96935.0,96934.0,0.201484]
[1734832257915,0.00016357,96935.0,96934.0,0.197484]
[1734832259272,0.00116357,96935.0,96934.0,0.201484]
[1734832260626,0.00124927,96935.0,96934.0,0.201484]
[1734832261456,0.00124927,96935.0,96934.0,0.19606022]
[1734832261865,0.00124927,96935.0,96934.0,0.44736862]
[1734832262063,0.00124927,96935.0,96934.0,0.52523716]
[1734832262267,0.00124927,96935.0,96934.0,0.64823716]
[1734832262707,0.00124927,96935.0,96934.0,0.64523716]
[1734832262946,0.00024927,96935.0,96934.0,0.64123716]
[1734832263152,0.00124927,96935.0,96934.0,0.67579086]
[1734832263358,2.7e-07,96935.0,96934.0,0.72809086]
[1734832263508,8.57e-05,96946.0,96934.0,0.72809086]
[1734832263509,8.57e-05,96946.0,96945.0,0.6120557]
[1734832263710,8.57e-05,96946.0,96945.0,0.7363641]
[1734832265122,0.0001714,96964.0,96945.0,0.7363641]
[1734832265123,0.0001714,96964.0,96955.0,0.561981]
[1734832265330,8.64e-05,96957.0,96956.0,0.3025537]
[1734832265529,8.64e-05,96957.0,96956.0,0.5095621]
[1734832265734,0.0001714,96964.0,96963.0,0.6145177]
[1734832265936,0.00032338,96964.0,96963.0,0.7158261]
[1734832266800,0.00032338,96964.0,96963.0,0.5048724]
[1734832267017,0.00032338,96964.0,96963.0,0.356264]
[1734832267218,0.00032338,96964.0,96963.0,0.361264]
[1734832267509,0.00032338,96964.0,96963.0,0.370264]
[1734832268635,0.00032338,96964.0,96963.0,0.365264]
[1734832268851,0.00032338,96964.0,96963.0,0.360264]
[1734832269078,0.00132338,96964.0,96963.0,0.369264]
[1734832269426,0.00032338,96964.0,96963.0,0.356264]
[1734832269621,0.00132338,96964.0,96963.0,0.369264]
[1734832269849,0.00032338,96964.0,96963.0,0.360264]
[1734832270259,0.00132338,96964.0,96963.0,0.365264]
[1734832270436,0.00132338,96964.0,96963.0,0.356264]
[1734832270840,0.00232338,96964.0,96963.0,0.363264]
[1734832271627,0.00232338,96964.0,96963.0,0.366264]
[1734832272068,0.00232338,96964.0,96963.0,0.363264]
[1734832272467,0.00232338,96964.0,96963.0,0.366264]
[1734832272672,0.00032338,96964.0,96963.0,0.359264]
[1734832272847,0.00132338,96964.0,96963.0,0.366264]
[1734832273063,0.00132338,96964.0,96963.0,0.363264]
[1734832273257,0.00032338,96964.0,96963.0,0.356264]
[1734832273530,0.00132338,96964.0,96963.0,0.366264]
[1734832273730,0.00132338,96964.0,96963.0,0.36538259]
[1734832273881,0.00032338,96964.0,96963.0,0.35838259]
[1734832274099,0.00032338,96964.0,96963.0,0.36438259]
[1734832274306,0.00132338,96964.0,96963.0,0.36438259]
[1734832274514,0.00032338,96964.0,96955.0,0.206279]
[1734832274690,0.00032338,96964.0,96956.0,0.15]
[1734832274892,0.00032338,96964.0,96955.0,0.206279]
[1734832275118,0.00032338,96964.0,96963.0,0.003]
[1734832275464,0.07067596,96958.0,96944.0,0.09204296]
[1734832275675,0.206296,96948.0,96944.0,0.09204296]
[1734832275930,0.206291,96950.0,96944.0,0.09204296]
[1734832276069,0.07067596,96951.0,96944.0,0.09204296]
[1734832276274,0.07067596,96955.0,96945.0,0.00103145]
[1734832276483,0.07067596,96955.0,96945.0,0.0010314]
[1734832276680,0.07067596,96951.0,96945.0,0.0010314]
[1734832276886,0.206291,96950.0,96944.0,0.005]
[1734832277094,0.07067596,96951.0,96944.0,0.005]
[1734832277394,0.07067596,96951.0,96940.0,0.00103142]
[1734832277543,0.07067596,96951.0,96945.0,0.005]
[1734832278257,0.0774,96949.0,96945.0,0.005]
[1734832278580,0.206296,96948.0,96945.0,0.005]
[1734832279219,0.206296,96948.0,96934.0,0.00120287]
[1734832279417,0.412592,96948.0,96934.0,0.00120287]
[1734832279963,0.206296,96948.0,96934.0,0.00120287]
[1734832280158,0.207296,96948.0,96934.0,0.00120287]
[1734832280366,0.206296,96948.0,96934.0,0.00120287]
[1734832280634,0.206308,96943.0,96934.0,0.0001714]